fUSD/lending_fUSD_20240117
["ID","MTS","AMOUNT","RATE_DAILY","PERIOD"]
[311901187,1705489988245,-2094.77,0.00027397,2]
[311901188,1705489988254,-534.01,0.00027397,2]
[311901189,1705489988264,-530.15407615,0.00027397,2]
[311901190,1705489988273,-1969.05,0.00027397,2]
[311901191,1705489988283,-4765.45,0.00027397,2]
[311901192,1705489988292,-591.22,0.00027397,2]
[311901193,1705489988301,-1724.25,0.00027397,2]
[311901194,1705489988310,-2966.94,0.00027397,2]
[311901195,1705489988320,-1073.7,0.00027397,2]
[311901196,1705489988330,-856.24,0.00027397,2]
[311901197,1705489988340,-2716.01,0.00027397,2]
[311901198,1705489988349,-5190.51,0.00027397,2]
[311901199,1705489988359,-1107.84,0.00027397,2]
[311901200,1705489988369,-3130.06,0.00027397,2]
[311901201,1705489988382,-1373.46,0.00027397,2]
[311901202,1705489988391,-2577.68,0.00027397,2]
[311901203,1705489988400,-4976.8,0.00027397,2]
[311901204,1705489988411,-1821.72,0.00027397,2]
[311901205,1705489988419,-2636.23,0.00027397,2]
[311901206,1705489988429,-795.84,0.00027397,2]
[311901207,1705489988439,-4042.57,0.00027397,2]
[311901208,1705489988450,-153.06156075,0.00027397,7]
[311901209,1705489988459,-964.47,0.00027397,2]
[311901210,1705489988468,-1662.15,0.00027397,2]
[311901211,1705489988477,-1181.55,0.00027397,2]
[311901212,1705489988487,-1443.1,0.00027397,2]
[311901213,1705489988496,-829.46,0.00027397,2]
[311901214,1705489988505,-263.97535266,0.00027397,7]
[311901215,1705489988514,-500.0,0.00027397,2]
[311901216,1705489988523,-1912.07,0.00027397,2]
[311901217,1705489988532,-1683.87,0.00027397,2]
[311901218,1705489988541,-2975.27,0.00027397,2]
[311901219,1705489988550,-257.82427067,0.00027397,7]
[311901220,1705489988559,-602.95,0.00027397,2]
[311901221,1705489988568,-1794.36,0.00027397,2]
[311901222,1705489988577,-3013.34,0.00027397,2]
[311901223,1705489988697,-1938.89,0.00027397,2]
[311901224,1705489988707,-649.62,0.00027397,2]
[311901225,1705489988715,-8143.8,0.00027397,2]
[311901226,1705489988724,-1207.37,0.00027397,2]
[311901227,1705489988733,-509.62,0.00027397,2]
[311901228,1705489988741,-1304.2,0.00027397,2]
[311901229,1705489988750,-1538.7,0.00027397,2]
[311901230,1705489988759,-924.58,0.00027397,2]
[311901231,1705489988769,-852.81,0.00027397,2]
[311901232,1705489988777,-1179.93,0.00027397,2]
[311901233,1705489988786,-1023.73,0.00027397,2]
[311901234,1705489988795,-2403.64,0.00027397,2]
[311901235,1705489988805,-1937.17,0.00027397,2]
[311901236,1705489988815,-2592.46,0.00027397,2]
[311901237,1705489988824,-968.29,0.00027397,2]
[311901238,1705489988833,-3413.16,0.00027397,2]
[311901239,1705489988841,-500.0,0.00027397,2]
[311901240,1705489988850,-745.84,0.00027397,2]
[311901241,1705489988859,-1297.47,0.00027397,2]
[311901242,1705489988868,-815.9,0.00027397,2]
[311901243,1705489988879,-2908.69,0.00027397,2]
[311901244,1705489988888,-1190.11,0.00027397,2]
[311901245,1705489988897,-8716.14,0.00027397,2]
[311901246,1705489988906,-601.43,0.00027397,2]
[311901247,1705489988915,-3604.29,0.00027397,5]
[311901248,1705489988924,-273.41,0.00027397,2]
[311901249,1705489988933,-9199.6,0.00027397,10]
[311901250,1705489988942,-500.0,0.000274,2]
[311901251,1705489988951,-5690.6930067,0.000274,2]
[311901252,1705489988960,-570.86,0.000274,2]
[311901253,1705489988970,-570.86,0.000274,2]
[311901254,1705489988979,-570.86,0.000274,2]
[311901255,1705489988988,-570.86,0.000274,2]
[311901256,1705489988997,-876.0,0.000275,2]
[311901257,1705489989006,-343.0,0.000275,2]
[311901258,1705489989015,-1000.0,0.000275,2]
[311901259,1705489989024,-500.0,0.00027568,7]
[311901260,1705489989033,-152.0,0.00027581,3]
[311901261,1705489989042,-151.06,0.00027643,2]
[311901262,1705489989050,-150.0,0.00027643,2]
[311901263,1705489989059,-150.0,0.00027643,2]
[311901264,1705489989069,-150.0,0.00027643,2]
[311901265,1705489989078,-150.0,0.00027643,2]
[311901266,1705489989087,-150.0,0.00027643,2]
[311901267,1705489989096,-150.0,0.00027643,2]
[311901268,1705489989104,-150.0,0.00027643,2]
[311901269,1705489989113,-150.0,0.00027643,2]
[311901270,1705489989123,-150.0,0.00027643,2]
[311901271,1705489989133,-150.0,0.00027643,2]
[311901272,1705489989142,-150.0,0.00027643,2]
[311901273,1705489989151,-150.0,0.00027643,2]
[311901274,1705489989160,-150.0,0.00027643,2]
[311901275,1705489989169,-150.0,0.00027643,2]
[311901276,1705489989180,-150.0,0.00027643,2]
[311901277,1705489989189,-150.0,0.00027643,2]
[311901278,1705489989199,-150.0,0.00027643,2]
[311901279,1705489989208,-150.0,0.00027643,2]
[311901280,1705489989217,-360.2,0.00027643,2]
[311901281,1705489989226,-150.0,0.00027644,7]
[311901282,1705489989236,-150.0,0.00027644,7]
[311901283,1705489989245,-150.0,0.00027644,7]
[311901284,1705489989254,-207.0,0.0002765,2]
[311901285,1705489989263,-1504.83,0.00027671,2]
[311901286,1705489989272,-752.6,0.00027671,2]
[311901287,1705489989281,-1005.29,0.00027671,2]
[311901288,1705489989290,-581.65,0.00027671,2]
[311901289,1705489989300,-724.82,0.00027671,2]
[311901290,1705489989309,-600.28,0.00027671,2]
[311901291,1705489989319,-568.6,0.00027671,2]
[311901292,1705489989328,-514.64,0.00027671,2]
[311901293,1705489989337,-522.85,0.00027671,2]
[311901294,1705489989346,-561.37,0.00027671,2]
[311901295,1705489989355,-170.72045674,0.00027671,2]
[311901296,1705489989365,-569.46,0.00027671,2]
[311901297,1705489989375,-564.18,0.00027671,2]
[311901298,1705489989388,-1178.46,0.00027671,2]
[311901299,1705489989396,-573.27,0.00027671,2]
[311901300,1705489989406,-540.7,0.00027671,2]
[311901301,1705489989415,-507.73,0.00027671,2]
[311901302,1705489989424,-313.52,0.00027671,2]
[311901303,1705489989433,-554.53,0.00027671,2]
[311901304,1705489989442,-676.5,0.00027671,2]
[311901305,1705489989450,-569.53,0.00027671,2]
[311901306,1705489989460,-773.49,0.00027671,2]
[311901307,1705489989469,-713.2,0.00027671,2]
[311901308,1705489989478,-924.46,0.00027671,2]
[311901309,1705489989488,-1087.8,0.00027671,2]
[311901310,1705489989498,-590.98,0.00027671,2]
[311901311,1705489989507,-748.0,0.00027671,2]
[311901312,1705489989519,-1140.29,0.00027671,2]
[311901313,1705489989530,-771.56,0.00027671,2]
[311901314,1705489989540,-841.84,0.00027671,2]
[311901315,1705489989550,-1103.54,0.00027671,2]
[311901316,1705489989558,-771.02,0.00027671,2]
[311901317,1705489989566,-674.53,0.00027671,2]
[311901318,1705489989576,-500.0,0.00027671,2]
[311901319,1705489989585,-1012.5,0.00027671,2]
[311901320,1705489989594,-708.29,0.00027671,2]
[311901321,1705489989603,-902.18,0.00027671,2]
[311901322,1705489989612,-642.34,0.00027671,2]
[311901323,1705489989621,-1577.38,0.00027671,2]
[311901324,1705489989631,-642.91,0.00027671,2]
[311901325,1705489989640,-671.72,0.00027671,2]
[311901326,1705489989649,-559.49,0.00027671,2]
[311901327,1705489989658,-513.19,0.00027671,2]
[311901328,1705489989667,-1101.33,0.00027671,2]
[311901329,1705489989677,-560.17,0.00027671,2]
[311901330,1705489989686,-646.26,0.00027671,2]
[311901331,1705489989695,-540.47,0.00027671,2]
[311901332,1705489989704,-1309.23,0.00027671,2]
[311901333,1705489989713,-862.21,0.00027671,2]
[311901334,1705489989723,-592.26,0.00027671,2]
[311901335,1705489989732,-332.69941583,0.00027671,2]
[311901336,1705489989741,-548.37,0.00027671,2]
[311901337,1705489989750,-852.28,0.00027671,2]
[311901338,1705489989759,-751.97,0.00027671,2]
[311901339,1705489989768,-629.68,0.00027671,2]
[311901340,1705489989777,-1038.17,0.00027671,2]
[311901341,1705489989787,-865.86,0.00027671,2]
[311901342,1705489989796,-809.41,0.00027671,2]
[311901343,1705489989806,-824.35,0.00027671,2]
[311901344,1705489989814,-500.0,0.00027671,2]
[311901345,1705489989823,-583.98,0.00027671,2]
[311901346,1705489989832,-858.82,0.00027671,2]
[311901347,1705489989841,-500.0,0.00027671,2]
[311901348,1705489989851,-678.81,0.00027671,2]
[311901349,1705489989860,-924.3,0.00027671,2]
[311901350,1705489989868,-683.06,0.00027671,2]
[311901351,1705489989877,-762.3,0.00027671,2]
[311901352,1705489989889,-726.09,0.00027671,2]
[311901353,1705489989898,-869.48,0.00027671,2]
[311901354,1705489989907,-500.0,0.00027671,2]
[311901355,1705489989916,-636.58,0.00027671,2]
[311901356,1705489989925,-888.84,0.00027671,2]
[311901357,1705489989934,-681.16,0.00027671,2]
[311901358,1705489989943,-1114.57,0.00027671,2]
[311901359,1705489989952,-986.98,0.00027671,2]
[311901360,1705489989961,-560.75,0.00027671,2]
[311901361,1705489989970,-1015.76,0.00027671,2]
[311901362,1705489989980,-818.15,0.00027671,2]
[311901363,1705489989990,-924.47,0.00027671,2]
[311901364,1705489989999,-565.32,0.00027671,2]
[311901365,1705489990009,-778.03,0.00027671,2]
[311901366,1705489990020,-938.79,0.00027671,2]
[311901367,1705489990030,-685.24,0.00027671,2]
[311901368,1705489990039,-1126.57,0.00027671,2]
[311901369,1705489990048,-1529.03,0.00027671,2]
[311901370,1705489990058,-842.83,0.00027671,2]
[311901371,1705489990068,-677.6,0.00027671,2]
[311901372,1705489990079,-500.0,0.00027671,2]
[311901373,1705489990089,-824.64,0.00027671,2]
[311901374,1705489990098,-1113.11,0.00027671,2]
[311901375,1705489990107,-1539.23,0.00027671,2]
[311901376,1705489990117,-509.96,0.00027671,2]
[311901377,1705489990127,-802.8,0.00027671,2]
[311901378,1705489990139,-620.77,0.00027671,2]
[311901379,1705489990148,-1060.88,0.00027671,2]
[311901380,1705489990158,-1111.84,0.00027671,2]
[311901381,1705489990168,-554.16,0.00027671,2]
[311901382,1705489990178,-797.2,0.00027671,2]
[311901383,1705489990187,-814.02,0.00027671,2]
[311901384,1705489990196,-653.02,0.00027671,2]
[311901385,1705489990205,-608.56,0.00027671,2]
[311901386,1705489990214,-435.65759796,0.00027671,2]
[311901387,1705489990224,-1117.37,0.00027671,2]
[311901388,1705489990234,-728.98,0.00027671,2]
[311901389,1705489990243,-786.84,0.00027671,2]
[311901390,1705489990253,-644.84,0.00027671,2]
[311901391,1705489990262,-865.83,0.00027671,2]
[311901392,1705489990271,-985.83,0.00027671,2]
[311901393,1705489990280,-645.46,0.00027671,2]
[311901394,1705489990289,-654.2,0.00027671,2]
[311901395,1705489990298,-671.37,0.00027671,2]
[311901396,1705489990307,-859.76,0.00027671,2]
[311901397,1705489990316,-679.83,0.00027671,2]
[311901398,1705489990326,-677.29,0.00027671,2]
[311901399,1705489990335,-812.38,0.00027671,2]
[311901400,1705489990344,-529.77,0.00027671,2]
[311901401,1705489990353,-905.75,0.00027671,2]
[311901402,1705489990361,-597.1,0.00027671,2]
[311901403,1705489990371,-500.0,0.00027671,2]
[311901404,1705489990382,-976.89,0.00027671,2]
[311901405,1705489990391,-921.81,0.00027671,2]
[311901406,1705489990400,-801.58,0.00027671,2]
[311901407,1705489990409,-1318.24,0.00027671,2]
[311901408,1705489990418,-565.85,0.00027671,2]
[311901409,1705489990427,-761.53,0.00027671,2]
[311901410,1705489990436,-500.0,0.00027671,2]
[311901411,1705489990446,-638.67,0.00027671,2]
[311901412,1705489990455,-903.46,0.00027671,2]
[311901413,1705489990669,-689.33,0.00027671,2]
[311901414,1705489990679,-642.35,0.00027671,2]
[311901415,1705489990689,-1001.32,0.00027671,2]
[311901416,1705489990698,-623.34,0.00027671,2]
[311901417,1705489990707,-893.53,0.00027671,2]
[311901418,1705489990716,-1127.94,0.00027671,2]
[311901419,1705489990725,-970.35,0.00027671,2]
[311901420,1705489990734,-703.72,0.00027671,2]
[311901421,1705489990743,-877.36,0.00027671,2]
[311901422,1705489990752,-423.24136353,0.00027671,2]
[311901423,1705489990761,-1113.03,0.00027671,2]
[311901424,1705489990770,-1009.59,0.00027671,2]
[311901425,1705489990780,-671.58,0.00027671,2]
[311901426,1705489990789,-645.55,0.00027671,2]
[311901427,1705489990797,-519.72,0.00027671,2]
[311901428,1705489990806,-832.3,0.00027671,2]
[311901429,1705489990815,-509.1,0.00027671,2]
[311901430,1705489990824,-556.75,0.00027671,2]
[311901431,1705489990833,-500.0,0.00027671,2]
[311901432,1705489990842,-919.94,0.00027671,2]
[311901433,1705489990851,-574.45,0.00027671,2]
[311901434,1705489990861,-730.7,0.00027671,2]
[311901435,1705489990870,-1564.11,0.00027671,2]
[311901436,1705489990879,-753.37,0.00027671,2]
[311901437,1705489990889,-1972.35,0.00027671,2]
[311901438,1705489990898,-819.9,0.00027671,2]
[311901439,1705489990907,-665.72,0.00027671,2]
[311901440,1705489990916,-1330.15,0.00027671,2]
[311901441,1705489990925,-1961.2,0.00027671,2]
[311901442,1705489990934,-924.92,0.00027671,2]
[311901443,1705489990943,-1342.87,0.00027671,2]
[311901444,1705489990952,-516.6,0.00027671,2]
[311901445,1705489990961,-966.0,0.00027671,2]
[311901446,1705489990970,-872.31,0.00027671,2]
[311901447,1705489990980,-1214.22,0.00027671,2]
[311901448,1705489990989,-748.35,0.00027671,2]
[311901449,1705489990998,-377.50303812,0.00027671,2]
[311901450,1705489991007,-937.16,0.00027671,2]
[311901451,1705489991016,-799.25,0.00027671,2]
[311901452,1705489991025,-628.65,0.00027671,2]
[311901453,1705489991034,-616.54,0.00027671,2]
[311901454,1705489991045,-717.16,0.00027671,2]
[311901455,1705489991055,-2202.67,0.00027671,2]
[311901456,1705489991064,-994.43,0.00027671,2]
[311901457,1705489991074,-707.9,0.00027671,2]
[311901458,1705489991082,-1314.57,0.00027671,2]
[311901459,1705489991092,-700.88,0.00027671,2]
[311901460,1705489991101,-747.11,0.00027671,2]
[311901461,1705489991110,-1247.23,0.00027671,2]
[311901462,1705489991119,-1107.65,0.00027671,2]
[311901463,1705489991128,-1113.86,0.00027671,2]
[311901464,1705489991138,-940.75,0.00027671,2]
[311901465,1705489991146,-1068.04,0.00027671,2]
[311901466,1705489991155,-591.69,0.00027671,2]
[311901467,1705489991164,-514.52,0.00027671,2]
[311901468,1705489991173,-1801.96,0.00027671,2]
[311901469,1705489991182,-1119.07,0.00027671,2]
[311901470,1705489991191,-500.0,0.00027671,2]
[311901471,1705489991200,-2470.72,0.00027671,2]
[311901472,1705489991209,-500.0,0.00027671,2]
[311901473,1705489991218,-524.15,0.00027671,2]
[311901474,1705489991228,-904.79,0.00027671,2]
[311901475,1705489991236,-1787.03,0.00027671,2]
[311901476,1705489991245,-510.6,0.00027671,2]
[311901477,1705489991255,-576.31,0.00027671,2]
[311901478,1705489991264,-1190.34,0.00027671,2]
[311901479,1705489991275,-764.68,0.00027671,2]
[311901480,1705489991284,-636.43,0.00027671,2]
[311901481,1705489991294,-670.55,0.00027671,2]
[311901482,1705489991303,-1264.48,0.00027671,2]
[311901483,1705489991313,-814.85,0.00027671,2]
[311901484,1705489991324,-1052.25,0.00027671,2]
[311901485,1705489991333,-544.71,0.00027671,2]
[311901486,1705489991342,-500.0,0.00027671,2]
[311901487,1705489991352,-1206.43,0.00027671,2]
[311901488,1705489991362,-500.0,0.00027671,2]
[311901489,1705489991372,-1198.01,0.00027671,2]
[311901490,1705489991383,-1043.84,0.00027671,2]
[311901491,1705489991393,-806.14,0.00027671,7]
[311901492,1705489991403,-1069.27,0.00027671,2]
[311901493,1705489991412,-1304.35,0.00027671,2]
[311901494,1705489991422,-1087.69,0.00027671,2]
[311901495,1705489991431,-962.26,0.00027671,2]
[311901496,1705489991441,-516.2,0.00027671,2]
[311901497,1705489991450,-1632.67,0.00027671,2]
[311901498,1705489991461,-500.0,0.00027671,2]
[311901499,1705489991471,-939.16,0.00027671,2]
[311901500,1705489991481,-918.4,0.00027671,2]
[311901501,1705489991490,-995.2,0.00027671,2]
[311901502,1705489991499,-1008.57,0.00027671,2]
[311901503,1705489991508,-1060.73,0.00027671,2]
[311901504,1705489991518,-1029.51,0.00027671,2]
[311901505,1705489991528,-636.13,0.00027671,2]
[311901506,1705489991538,-371.5448322,0.00027671,2]
[311901507,1705489991547,-702.02,0.00027671,2]
[311901508,1705489991556,-701.5,0.00027671,2]
[311901509,1705489991565,-594.97,0.00027671,2]
[311901510,1705489991574,-1038.32,0.00027671,2]
[311901511,1705489991584,-572.4,0.00027671,2]
[311901512,1705489991593,-3550.63,0.00027671,2]
[311901513,1705489991602,-982.96,0.00027671,2]
[311901514,1705489991610,-579.93,0.00027671,2]
[311901515,1705489991620,-583.23265821,0.00027671,2]
[311901516,1705489991629,-924.4,0.00027671,2]
[311901517,1705489991639,-2301.87,0.00027671,2]
[311901518,1705489991648,-578.12,0.00027671,2]
[311901519,1705489991657,-885.89,0.00027671,2]
[311901520,1705489991666,-694.35,0.00027671,2]
[311901521,1705489991675,-711.56,0.00027671,2]
[311901522,1705489991684,-1404.62,0.00027671,2]
[311901523,1705489991693,-500.0,0.00027671,2]
[311901524,1705489991702,-635.43,0.00027671,2]
[311901525,1705489991711,-1174.22,0.00027671,2]
[311901526,1705489991720,-1235.63,0.00027671,2]
[311901527,1705489991729,-701.7,0.00027671,2]
[311901528,1705489991739,-915.13,0.00027671,2]
[311901529,1705489991749,-2849.83,0.00027671,2]
[311901530,1705489991758,-1964.36,0.00027671,2]
[311901531,1705489991767,-621.85782516,0.00027671,2]
[311901532,1705489991776,-544.59,0.00027671,2]
[311901533,1705489991787,-2896.5,0.00027671,2]
[311901534,1705489991798,-683.02,0.00027671,2]
[311901535,1705489991808,-1968.52,0.00027671,2]
[311901536,1705489991818,-1342.01,0.00027671,2]
[311901537,1705489991828,-675.72,0.00027671,2]
[311901538,1705489991839,-1029.41,0.00027671,2]
[311901539,1705489991847,-1548.58,0.00027671,2]
[311901540,1705489991856,-655.65,0.00027671,2]
[311901541,1705489991866,-3528.9,0.00027671,2]
[311901542,1705489991874,-550.17,0.00027671,2]
[311901543,1705489991885,-530.48,0.00027671,2]
[311901544,1705489991894,-1274.2,0.00027671,2]
[311901545,1705489991903,-710.03,0.00027671,2]
[311901546,1705489991912,-500.0,0.00027671,2]
[311901547,1705489991921,-8305.92,0.00027671,2]
[311901548,1705489991930,-1478.93,0.00027671,2]
[311901549,1705489991939,-826.31,0.00027671,2]
[311901550,1705489991948,-3468.63,0.00027671,2]
[311901551,1705489991957,-688.83,0.00027671,2]
[311901552,1705489991966,-598.69,0.00027671,2]
[311901553,1705489991977,-566.04,0.00027671,2]
[311901554,1705489991986,-13840.01,0.00027671,2]
[311901555,1705489991996,-330.45,0.00027671,2]
[311901556,1705489992006,-678.15,0.00027671,2]
[311901557,1705489992015,-611.72,0.00027671,2]
[311901558,1705489992024,-6007.21,0.00027671,2]
[311901559,1705489992034,-11260.59,0.00027671,2]
[311901560,1705489992045,-537.26,0.00027671,2]
[311901561,1705489992054,-576.52,0.00027671,2]
[311901562,1705489992063,-839.94,0.00027671,2]
[311901563,1705489992072,-785.85,0.00027671,2]
[311901564,1705489992081,-2426.8,0.00027671,2]
[311901565,1705489992091,-9043.74,0.00027671,2]
[311901566,1705489992100,-2267.53,0.00027671,2]
[311901567,1705489992109,-1153.46,0.00027671,2]
[311901568,1705489992118,-5019.46,0.00027671,2]
[311901569,1705489992128,-14230.88,0.00027671,2]
[311901570,1705489992139,-585.41,0.00027671,2]
[311901571,1705489992149,-1948.18,0.00027671,2]
[311901572,1705489992158,-807.32,0.00027671,2]
[311901573,1705489992168,-541.68,0.00027671,2]
[311901574,1705489992177,-1841.76,0.00027671,2]
[311901575,1705489992186,-648.92,0.00027671,2]
[311901576,1705489992196,-1313.51,0.00027671,2]
[311901577,1705489992206,-7863.6,0.00027671,2]
[311901578,1705489992215,-669.79,0.00027671,2]
[311901579,1705489992224,-1235.43,0.00027671,2]
[311901580,1705489992233,-1875.02,0.00027671,2]
[311901581,1705489992243,-886.27,0.00027671,2]
[311901582,1705489992253,-861.27,0.00027671,2]
[311901583,1705489992262,-6074.67,0.00027671,2]
[311901584,1705489992273,-863.63,0.00027671,2]
[311901585,1705489992282,-2235.54,0.00027671,2]
[311901586,1705489992291,-697.24,0.00027671,2]
[311901587,1705489992301,-524.02,0.00027671,2]
[311901588,1705489992311,-4516.86,0.00027671,2]
[311901589,1705489992321,-3841.76,0.00027671,2]
[311901590,1705489992330,-974.16,0.00027671,2]
[311901591,1705489992339,-4150.83,0.00027671,2]
[311901592,1705489992348,-4448.34,0.00027671,2]
[311901593,1705489992357,-500.0,0.00027671,2]
[311901594,1705489992366,-533.91,0.00027671,2]
[311901595,1705489992377,-566.02,0.00027671,2]
[311901596,1705489992390,-2935.1,0.00027671,2]
[311901597,1705489992399,-1309.04,0.00027671,2]
[311901598,1705489992408,-1965.44,0.00027671,2]
[311901599,1705489992418,-984.15,0.00027671,2]
[311901600,1705489992427,-992.22,0.00027671,2]
[311901601,1705489992436,-500.0,0.00027671,2]
[311901602,1705489992445,-32469.27,0.00027671,2]
[311901603,1705489992454,-573.08,0.00027671,2]
[311901604,1705489992465,-661.33,0.00027671,2]
[311901605,1705489992475,-615.65,0.00027671,2]
[311901606,1705489992483,-1696.71,0.00027671,2]
[311901607,1705489992493,-649.27,0.00027671,2]
[311901608,1705489992502,-2575.9,0.00027671,2]
[311901609,1705489992511,-1939.24,0.00027671,2]
[311901610,1705489992520,-3511.42,0.00027671,2]
[311901611,1705489992529,-1929.09,0.00027671,2]
[311901612,1705489992538,-1412.27,0.00027671,2]
[311901613,1705489992547,-2389.77,0.00027671,2]
[311901614,1705489992556,-2475.33,0.00027671,2]
[311901615,1705489992565,-500.0,0.00027671,2]
[311901616,1705489992575,-1653.65,0.00027671,2]
[311901617,1705489992584,-4575.47,0.00027671,2]
[311901618,1705489992593,-14816.63,0.00027671,2]
[311901619,1705489992603,-661.55,0.00027671,2]
[311901620,1705489992612,-834.9,0.00027671,2]
[311901621,1705489992621,-1732.77,0.00027671,2]
[311901622,1705489992631,-8016.45,0.00027671,2]
[311901623,1705489992640,-558.85,0.00027671,2]
[311901624,1705489992649,-1352.99,0.00027671,2]
[311901625,1705489992666,-1784.49,0.00027671,2]
[311901626,1705489992675,-678.67,0.00027671,2]
[311901627,1705489992684,-1038.1,0.00027671,2]
[311901628,1705489992693,-9036.89,0.00027671,2]
[311901629,1705489992702,-815.12,0.00027671,2]
[311901630,1705489992711,-1774.09,0.00027671,2]
[311901631,1705489992721,-502.32,0.00027671,2]
[311901632,1705489992731,-2414.66,0.00027671,2]
[311901633,1705489992741,-5111.21,0.00027671,2]
[311901634,1705489992750,-1734.88,0.00027671,2]
[311901635,1705489992759,-855.29,0.00027671,2]
[311901636,1705489992769,-2245.54,0.00027671,2]
[311901637,1705489992778,-1744.59,0.00027671,2]
[311901638,1705489992788,-1274.36,0.00027671,2]
[311901639,1705489992797,-706.05,0.00027671,2]
[311901640,1705489992806,-1510.08,0.00027671,2]
[311901641,1705489992815,-887.83,0.00027671,2]
[311901642,1705489992825,-1357.1,0.00027671,2]
[311901643,1705489992834,-1827.37,0.00027671,2]
[311901644,1705489992843,-1435.95,0.00027671,2]
[311901645,1705489992853,-584.24,0.00027671,2]
[311901646,1705489992862,-663.37,0.00027671,2]
[311901647,1705489992874,-779.77,0.00027671,2]
[311901648,1705489992883,-597.44,0.00027671,2]
[311901649,1705489992894,-3629.95,0.00027671,2]
[311901650,1705489992905,-1883.37,0.00027671,2]
[311901651,1705489992915,-916.35,0.00027671,2]
[311901652,1705489992925,-992.47,0.00027671,2]
[311901653,1705489992936,-1639.63,0.00027671,2]
[311901654,1705489992945,-1741.77,0.00027671,2]
[311901655,1705489992956,-3959.88,0.00027671,2]
[311901656,1705489992965,-820.93,0.00027671,2]
[311901657,1705489992975,-7153.04,0.00027671,2]
[311901658,1705489992984,-500.0,0.00027671,2]
[311901659,1705489992993,-806.13,0.00027671,2]
[311901660,1705489993002,-2360.61,0.00027671,2]
[311901661,1705489993013,-782.9,0.00027671,2]
[311901662,1705489993022,-1392.64,0.00027671,2]
[311901663,1705489993031,-315.99369957,0.00027671,2]
[311901664,1705489993041,-1083.43,0.00027671,2]
[311901665,1705489993051,-507.5,0.00027671,2]
[311901666,1705489993060,-778.97,0.00027671,2]
[311901667,1705489993070,-979.46,0.00027671,2]
[311901668,1705489993080,-909.26,0.00027671,2]
[311901669,1705489993090,-3419.57,0.00027671,2]
[311901670,1705489993100,-1210.04,0.00027671,2]
[311901671,1705489993110,-1060.67,0.00027671,2]
[311901672,1705489993119,-2842.76,0.00027671,2]
[311901673,1705489993129,-3566.82,0.00027671,5]
[311901674,1705489993141,-1906.25,0.00027671,2]
[311901675,1705489993150,-1195.39,0.00027671,2]
[311901676,1705489993161,-5873.11,0.00027671,2]
[311901677,1705489993170,-1159.83,0.00027671,2]
[311901678,1705489993180,-500.0,0.00027671,2]
[311901679,1705489993189,-1059.12,0.00027671,2]
[311901680,1705489993199,-1861.48,0.00027671,2]
[311901681,1705489993209,-651.56,0.00027671,2]
[311901682,1705489993219,-3914.25,0.00027671,2]
[311901683,1705489993229,-1418.66,0.00027671,2]
[311901684,1705489993238,-1392.42,0.00027671,2]
[311901685,1705489993248,-1713.01,0.00027671,2]
[311901686,1705489993258,-2140.36,0.00027671,2]